[Event "Fagernes GM Swiss 2020"]
[Site "Fagernes"]
[Date "2020.10.09"]
[Round "7.22"]
[White "Machlik, Monika"]
[Black "Melaa, Sondre"]
[Result "1-0"]
[ECO "D36"]
[WhiteElo "2082"]
[BlackElo "2210"]
[Annotator "ChessBase"]
[PlyCount "79"]
[EventDate "2020.10.04"]
[EventType "swiss"]
[EventCountry "NOR"]
[SourceTitle "playchess.com"]
[Source "ChessBase"]
[SourceQuality "1"]
[TimeControl "40/6000+30:2400+30"]

1. d4 {[%emt 0:00:00]} d5 {[%emt 0:02:06]} 2. c4 {[%emt 0:00:00]} e6 {[%emt 0:00:25]} 3. Nc3 {[%emt 0:00:00]} Nf6 {[%emt 0:00:08]} 4. cxd5 {[%emt 0:00:00]} exd5 {[%emt 0:00:09]} 5. Bg5 {[%emt 0:00:00]} c6 {[%emt 0:00:09]} 6. e3 {[%emt 0:00:00]} Be7 {[%emt 0:00:07]} 7. Qc2 {[%emt 0:00:00]} Nbd7 {[%emt 0:00:27]} 8. Bd3 {[%emt 0:03:00]} h6 {[%emt 0:00:12]} 9. Bh4 {[%emt 0:00:28]} Nh5 {[%emt 0:00:10]} 10. Bxe7 {[%emt 0:00:03]} Qxe7 {[%emt 0:00:09]} 11. Nge2 {[%emt 0:00:50]} Nb6 {[%emt 0:00:08]} 12. O-O {[%emt 0:00:39]} O-O {[%emt 0:00:13]} 13. Rae1 {[%emt 0:00:08]} Bd7 {[%emt 0:00:11]} 14. Nc1 {[%emt 0:00:30]} Rae8 {[%emt 0:03:04]} 15. Nb3 {[%emt 0:06:38]} Nc8 {[%emt 0:07:45]} 16. Nc5 {[%emt 0:07:27]} Nd6 {[%emt 0:00:09]} 17. b4 {[%emt 0:01:17]} b6 {[%emt 0:18:41]} 18. Nxd7 {[%emt 0:09:21]} Qxd7 {[%emt 0:00:10]} 19. a4 {[%emt 0:04:13]} Nf6 {[%emt 0:03:52]} 20. Rc1 {[%emt 0:02:18]} Qb7 {[%emt 0:13:40]} 21. Qe2 {[%emt 0:10:29]} Nde4 {[%emt 0:25:25]} 22. Rc2 {[%emt 0:14:42]} Qe7 {[%emt 0:08:06]} 23. Rb1 {[%emt 0:01:25]} Rc8 {[%emt 0:04:12]} 24. h3 {[%emt 0:22:06]} Nxc3 {[%emt 0:03:13]} 25. Rxc3 {[%emt 0:00:04]} c5 {[%emt 0:00:19]} 26. bxc5 {[%emt 0:03:44]} bxc5 {[%emt 0:00:18]} 27. dxc5 {[%emt 0:01:13]} Rxc5 {[%emt 0:00:09]} 28. Rxc5 {[%emt 0:01:22]} Qxc5 {[%emt 0:00:06]} 29. Qc2 {[%emt 0:00:48]} Qe7 {[%emt 0:03:26]} 30. Qc6 {[%emt 0:02:44]} Qe5 {[%emt 0:10:31]} 31. Qc5 {[%emt 0:02:24]} Ra8 {[%emt 0:03:14]} 32. a5 {[%emt 0:05:16]} g6 {[%emt 0:01:09]} 33. Rb7 {[%emt 0:05:16]} Rb8 {[%emt 0:01:43]} 34. a6 {[%emt 0:02:06]} Qa1+ {[%emt 0:01:13]} 35. Kh2 {[%emt 0:00:20]} Re8 {[%emt 0:00:34]} 36. Rxa7 {[%emt 0:03:19]} Qe5+ {[%emt 0:01:08]} 37. g3 {[%emt 0:00:30]} Ne4 {[%emt 0:01:06]} 38. Bxe4 {[%emt 0:01:22]} Qxe4 {[%emt 0:00:18]} 39. Qc6 {[%emt 0:02:23]} Rf8 {[%emt 0:00:45]} 40. Qf6 {[%emt 0:00:53]} 1-0

[Event "Fagernes GM Swiss 2020"]
[Site "Fagernes"]
[Date "2020.10.09"]
[Round "7.23"]
[White "Grover, Sigurd Loe"]
[Black "Kvendseth, Thyra"]
[Result "1-0"]
[ECO "E91"]
[WhiteElo "2145"]
[BlackElo "2017"]
[Annotator "ChessBase"]
[PlyCount "75"]
[EventDate "2020.10.04"]
[EventType "swiss"]
[EventCountry "NOR"]
[SourceTitle "playchess.com"]
[Source "ChessBase"]
[SourceQuality "1"]
[TimeControl "40/6000+30:2400+30"]

1. d4 {[%emt 0:00:00]} Nf6 {[%emt 0:00:00]} 2. c4 {[%emt 0:00:00]} g6 {[%emt 0:00:00]} 3. Nc3 {[%emt 0:00:00]} Bg7 {[%emt 0:00:00]} 4. e4 {[%emt 0:00:00]} d6 {[%emt 0:00:00]} 5. Be2 {[%emt 0:00:00]} O-O {[%emt 0:00:15]} 6. Be3 {[%emt 0:00:10]} c6 {[%emt 0:03:08]} 7. Nf3 {[%emt 0:00:39]} Bg4 {[%emt 0:02:43]} 8. O-O {[%emt 0:02:15]} Na6 {[%emt 0:02:57]} 9. a3 {[%emt 0:02:57]} c5 {[%emt 0:11:30]} 10. d5 {[%emt 0:01:45]} Nd7 {[%emt 0:04:03]} 11. Qd2 {[%emt 0:06:38]} Re8 {[%emt 0:11:09]} 12. Rac1 {[%emt 0:11:05]} Bxf3 {[%emt 0:09:12]} 13. Bxf3 {[%emt 0:00:07]} Ne5 {[%emt 0:00:07]} 14. Be2 {[%emt 0:00:09]} Qd7 {[%emt 0:07:13]} 15. h3 {[%emt 0:02:25]} f5 {[%emt 0:02:44]} 16. f4 {[%emt 0:05:03]} Nf7 {[%emt 0:00:06]} 17. exf5 {[%emt 0:01:22]} Qxf5 {[%emt 0:04:16]} 18. Bg4 {[%emt 0:05:09]} Bxc3 {[%emt 0:03:03]} 19. Rxc3 {[%emt 0:08:42]} Qf6 {[%emt 0:00:38]} 20. b4 {[%emt 0:01:40]} b6 {[%emt 0:02:05]} 21. Rb3 {[%emt 0:02:47]} Nc7 {[%emt 0:02:46]} 22. f5 {[%emt 0:15:02]} g5 {[%emt 0:02:50]} 23. Bh5 {[%emt 0:02:08]} h6 {[%emt 0:00:56]} 24. Bxf7+ {[%emt 0:04:24]} Kxf7 {[%emt 0:00:36]} 25. Qe2 {[%emt 0:00:47]} Kg7 {[%emt 0:04:13]} 26. Bc1 {[%emt 0:00:53]} Kh7 {[%emt 0:01:15]} 27. Bb2 {[%emt 0:01:01]} Qf7 {[%emt 0:00:14]} 28. Re3 {[%emt 0:00:26]} b5 {[%emt 0:04:25]} 29. bxc5 {[%emt 0:05:16]} bxc4 {[%emt 0:01:28]} 30. f6 {[%emt 0:06:36]} Nxd5 {[%emt 0:02:29]} 31. fxe7 {[%emt 0:01:53]} Nf4 {[%emt 0:01:55]} 32. Qc2+ {[%emt 0:02:50]} Kg8 {[%emt 0:02:42]} 33. cxd6 {[%emt 0:03:29]} Rab8 {[%emt 0:00:44]} 34. Qc3 {[%emt 0:03:56]} Rxb2 {[%emt 0:02:21]} 35. Qxb2 {[%emt 0:00:09]} Qd5 {[%emt 0:00:19]} 36. g3 {[%emt 0:04:53]} Qc5 {[%emt 0:01:54]} 37. Qe5 {[%emt 0:02:43]} Nd5 {[%emt 0:03:02]} 38. Qe6+ {[%emt 0:01:48]} 1-0

[Event "Fagernes GM Swiss 2020"]
[Site "Fagernes"]
[Date "2020.10.09"]
[Round "7.24"]
[White "Bjerke, Richard"]
[Black "Flatebo, Hallvard Haug"]
[Result "1-0"]
[ECO "A87"]
[WhiteElo "2144"]
[BlackElo "1877"]
[Annotator "ChessBase"]
[PlyCount "137"]
[EventDate "2020.10.04"]
[EventType "swiss"]
[EventCountry "NOR"]
[SourceTitle "playchess.com"]
[Source "ChessBase"]
[SourceQuality "1"]
[TimeControl "40/6000+30:2400+30"]

1. d4 {[%emt 0:00:00]} f5 {[%emt 0:00:00]} 2. g3 {[%emt 0:00:00]} Nf6 {[%emt 0:00:00]} 3. Bg2 {[%emt 0:00:04]} g6 {[%emt 0:00:00]} 4. Nf3 {[%emt 0:00:09]} d6 {[%emt 0:00:00]} 5. O-O {[%emt 0:00:09]} Bg7 {[%emt 0:00:00]} 6. c4 {[%emt 0:00:12]} O-O {[%emt 0:00:00]} 7. Nc3 {[%emt 0:00:07]} e6 {[%emt 0:00:21]} 8. Rb1 {[%emt 0:02:40]} a5 {[%emt 0:03:53]} 9. a3 {[%emt 0:02:28]} Qe7 {[%emt 0:08:03]} 10. b4 {[%emt 0:07:32]} axb4 {[%emt 0:03:09]} 11. axb4 {[%emt 0:00:11]} c6 {[%emt 0:07:41]} 12. c5 {[%emt 0:03:10]} Ne4 {[%emt 0:05:19]} 13. Qb3 {[%emt 0:10:07]} dxc5 {[%emt 0:22:02]} 14. bxc5 {[%emt 0:00:31]} Nd7 {[%emt 0:02:24]} 15. Bb2 {[%emt 0:03:09]} Nxc3 {[%emt 0:02:25]} 16. Bxc3 {[%emt 0:02:15]} Kh8 {[%emt 0:02:11]} 17. Qc4 {[%emt 0:09:05]} e5 {[%emt 0:05:57]} 18. dxe5 {[%emt 0:04:59]} Nxe5 {[%emt 0:00:40]} 19. Nxe5 {[%emt 0:01:09]} Bxe5 {[%emt 0:00:06]} 20. Ra1 {[%emt 0:03:31]} Bd7 {[%emt 0:05:20]} 21. Rfd1 {[%emt 0:03:18]} Rxa1 {[%emt 0:02:02]} 22. Rxa1 {[%emt 0:00:11]} Qf6 {[%emt 0:00:53]} 23. Bxe5 {[%emt 0:02:52]} Qxe5 {[%emt 0:00:22]} 24. Rd1 {[%emt 0:05:34]} Be6 {[%emt 0:01:31]} 25. Qd4 {[%emt 0:01:23]} Qxd4 {[%emt 0:00:36]} 26. Rxd4 {[%emt 0:00:09]} Ra8 {[%emt 0:00:44]} 27. Bf3 {[%emt 0:02:06]} Ra5 {[%emt 0:01:13]} 28. Rd6 {[%emt 0:00:46]} Bc4 {[%emt 0:01:02]} 29. Rd8+ {[%emt 0:01:56]} Bg8 {[%emt 0:05:16]} 30. Rd7 {[%emt 0:02:52]} Rb5 {[%emt 0:01:48]} 31. h4 {[%emt 0:06:13]} h6 {[%emt 0:01:38]} 32. h5 {[%emt 0:03:06]} g5 {[%emt 0:02:22]} 33. Re7 {[%emt 0:03:30]} Bd5 {[%emt 0:08:39]} 34. Bxd5 {[%emt 0:04:57]} cxd5 {[%emt 0:00:04]} 35. Rd7 {[%emt 0:00:14]} Rxc5 {[%emt 0:00:33]} 36. Rxb7 {[%emt 0:00:12]} d4 {[%emt 0:01:12]} 37. Rd7 {[%emt 0:01:11]} Rc2 {[%emt 0:01:32]} 38. Kf1 {[%emt 0:02:02]} Rc1+ {[%emt 0:07:45]} 39. Kg2 {[%emt 0:00:16]} Re1 {[%emt 0:00:15]} 40. Rxd4 {[%emt 0:04:13]} Rxe2 {[%emt 0:00:09]} 41. Rd5 {[%emt 0:40:31]} f4 {[%emt 0:41:57]} 42. gxf4 {[%emt 0:01:18]} gxf4 {[%emt 0:00:15]} 43. Kf3 {[%emt 0:00:43]} Ra2 {[%emt 0:00:23]} 44. Rf5 {[%emt 0:01:09]} Kg7 {[%emt 0:00:47]} 45. Rxf4 {[%emt 0:01:29]} Ra3+ {[%emt 0:00:08]} 46. Kg4 {[%emt 0:00:49]} Ra1 {[%emt 0:00:42]} 47. Rf5 {[%emt 0:01:15]} Rg1+ {[%emt 0:01:09]} 48. Kf4 {[%emt 0:00:41]} Ra1 {[%emt 0:00:54]} 49. Rb5 {[%emt 0:11:38]} Ra4+ {[%emt 0:00:37]} 50. Kf5 {[%emt 0:00:28]} Ra7 {[%emt 0:01:23]} 51. f4 {[%emt 0:00:22]} Rf7+ {[%emt 0:00:42]} 52. Kg4 {[%emt 0:01:40]} Ra7 {[%emt 0:00:47]} 53. Rc5 {[%emt 0:03:51]} Rd7 {[%emt 0:02:19]} 54. Rc6 {[%emt 0:01:12]} Ra7 {[%emt 0:02:54]} 55. Rg6+ {[%emt 0:00:00]} Kh7 {[%emt 0:00:00]} 56. Re6 {[%emt 0:00:00]} Kg7 {[%emt 0:00:00]} 57. Kf5 {[%emt 0:00:00]} Ra5+ {[%emt 0:00:00]} 58. Re5 {[%emt 0:00:00]} Ra7 {[%emt 0:00:00]} 59. Rc5 {[%emt 0:00:00]} Re7 {[%emt 0:00:00]} 60. Rc6 {[%emt 0:00:00]} Rf7+ {[%emt 0:00:00]} 61. Ke5 {[%emt 0:00:00]} Ra7 {[%emt 0:00:00]} 62. f5 {[%emt 0:00:00]} Re7+ {[%emt 0:00:00]} 63. Re6 {[%emt 0:00:00]} Ra7 {[%emt 0:00:00]} 64. Rg6+ {[%emt 0:00:00]} Kh7 {[%emt 0:00:00]} 65. Rd6 {[%emt 0:00:00]} Kg7 {[%emt 0:00:00]} 66. Ke6 {[%emt 0:00:00]} Ra8 {[%emt 0:00:00]} 67. f6+ {[%emt 0:00:00]} Kh7 {[%emt 0:00:00]} 68. Rd7+ {[%emt 0:00:00]} Kg8 {[%emt 0:00:00]} 69. Kf5 {[%emt 0:00:00]} 1-0

[Event "Fagernes GM Swiss 2020"]
[Site "Fagernes"]
[Date "2020.10.10"]
[Round "8.14"]
[White "Torngren, Gustav"]
[Black "Kvaloy, Aksel Bu"]
[Result "1-0"]
[ECO "C44"]
[WhiteElo "2185"]
[BlackElo "2174"]
[Annotator "NA"]
[PlyCount "59"]
[EventDate "2020.10.04"]
[EventType "swiss"]
[EventCountry "NOR"]
[SourceTitle "playchess.com"]
[Source "ChessBase"]
[SourceQuality "1"]
[TimeControl "40/6000+30:2400+30"]

1. d3 {[%emt 0:06:10]} e5 {[%emt 0:00:39]} 2. Nf3 {[%emt 0:00:37]} Nc6 {[%emt 0:00:14]} 3. e4 {[%emt 0:00:44]} Nf6 {[%emt 0:00:39]} 4. c3 {[%emt 0:01:53]} d5 {[%emt 0:00:20]} 5. Nbd2 {[%emt 0:00:16]} a5 {[%emt 0:08:26]} 6. a4 {[%emt 0:00:15] C44: Ponziani Opening and Scotch Gambit.} Bc5 {[%emt 0:00:54]} 7. Be2 {[%emt 0:00:32]} O-O {[%emt 0:02:00]} 8. Qc2 {[%emt 0:00:38]} Re8 {[%emt 0:02:53]} 9. h3 {[%emt 0:04:52] [#]} Ba7 $146 {[%emt 0:09:16]} ({Predecessor:} 9... h6 10. O-O Be6 11. Re1 Ba7 12. Nf1 Qd7 13. Ng3 Bxh3 14. gxh3 Qxh3 15. d4 exd4 {0-1 (49) Friedland,J (2148)-Jones,R (2391) Amersham 2012}) 10. Nf1 {[%emt 0:09:00]} dxe4 {[%emt 0:09:19]} 11. dxe4 {[%emt 0:00:11]} Nd7 {[%emt 0:01:00]} 12. Bg5 {[%emt 0:12:57]} f6 {[%emt 0:01:13]} 13. Bc4+ {[%emt 0:00:09]} Kh8 {[%emt 0:00:35]} 14. Be3 {[%emt 0:04:30]} Bxe3 {[%emt 0:01:25]} 15. Nxe3 {[%emt 0:00:20]} Nc5 {[%emt 0:02:45]} 16. Rd1 {[%emt 0:01:58]} Bd7 {[%emt 0:01:10]} 17. h4 {[%emt 0:16:05]} Qc8 {[%emt 0:03:01]} 18. h5 {[%emt 0:04:31]} Ne7 {[%emt 0:01:51]} 19. Nh4 {[%emt 0:05:01]} Bxa4 $18 {[%emt 0:08:18]} (19... Be6 $11 {and Black stays safe.}) 20. Ng6+ {[%emt 0:06:11]} Nxg6 {[%emt 0:00:43]} 21. hxg6 {[%emt 0:00:02]} h6 {[%emt 0:00:17]} 22. b3 {[%emt 0:00:49]} Bc6 {[%emt 0:00:49]} 23. f3 {[%emt 0:09:33]} Rf8 {[%emt 0:13:46]} 24. Nf5 {[%emt 0:01:59]} Qe8 {[%emt 0:02:08]} 25. Qf2 {[%emt 0:02:36]} b6 {[%emt 0:04:52]} 26. Nxh6 {[%emt 0:01:07]} gxh6 {[%emt 0:01:04]} 27. Rxh6+ {[%emt 0:00:03]} Kg7 {[%emt 0:00:14]} 28. Rh7+ {[%emt 0:00:10]} Kxg6 {[%emt 0:00:05]} 29. Qh4 {[%emt 0:00:04]} Bxe4 {[%emt 0:00:27]} 30. Qh5# {[%emt 0:00:10]} 1-0

[Event "Fagernes GM Swiss 2020"]
[Site "Fagernes"]
[Date "2020.10.10"]
[Round "8.16"]
[White "Dolzhikova, Olga"]
[Black "Sorensen, Simen"]
[Result "1-0"]
[ECO "B22"]
[WhiteElo "2208"]
[BlackElo "2047"]
[Annotator "NA"]
[PlyCount "111"]
[EventDate "2020.10.04"]
[EventType "swiss"]
[EventCountry "NOR"]
[SourceTitle "playchess.com"]
[Source "ChessBase"]
[SourceQuality "1"]
[TimeControl "40/6000+30:2400+30"]

1. e4 {[%emt 0:00:00]} c5 {[%emt 0:01:27]} 2. c3 {[%emt 0:00:00]} Nf6 {[%emt 0:00:38]} 3. e5 {[%emt 0:00:00]} Nd5 {[%emt 0:00:07]} 4. d4 {[%emt 0:00:00]} cxd4 {[%emt 0:00:09]} 5. Qxd4 {[%emt 0:00:00]} e6 {[%emt 0:02:04]} 6. Nf3 {[%emt 0:00:00]} Nc6 {[%emt 0:11:26]} 7. Qe4 {[%emt 0:00:05]} d6 {[%emt 0:18:17]} 8. Bb5 {[%emt 0:00:37] is now more promising than 8.Nbd2.} Bd7 {[%emt 0:03:40]} 9. c4 {[%emt 0:00:26]} Nc7 {[%emt 0:02:30] B22: Sicilian: 2 c3.} 10. exd6 {[%emt 0:00:55]} Bxd6 {[%emt 0:01:05]} 11. O-O {[%emt 0:02:37]} O-O {[%emt 0:06:50]} 12. Rd1 {[%emt 0:03:20]} Be7 {[%emt 0:04:24]} 13. Nc3 {[%emt 0:01:34]} Qc8 {[%emt 0:03:00] [#]} 14. Bf4 $146 {[%emt 0:09:37]} ({Predecessor:} 14. Ba4 Ne8 15. Bf4 Nf6 16. Qe2 a6 17. Rac1 Na5 18. Bxd7 Nxd7 19. Ne4 e5 20. Nxe5 Nxe5 21. Bxe5 {0-1 (33) Veganzonez Rojo,D (2149)-Teran Alvarez,I (2384) Linares 2017}) 14... f6 {[%emt 0:06:00]} 15. Bd6 {[%emt 0:18:59]} Bxd6 {[%emt 0:12:05]} 16. Rxd6 {[%emt 0:00:06]} e5 {[%emt 0:05:45]} 17. Ba4 {[%emt 0:17:28]} Bf5 {[%emt 0:01:52]} 18. Qe3 {[%emt 0:04:33]} Rd8 {[%emt 0:04:13]} 19. c5 {[%emt 0:07:23]} Ne6 {[%emt 0:05:31]} 20. Nd5 {[%emt 0:06:40]} Re8 {[%emt 0:02:05]} 21. b4 $16 {[%emt 0:05:17]} Ned4 {[%emt 0:03:34]} 22. Nxd4 {[%emt 0:07:53]} exd4 {[%emt 0:00:27]} 23. Qd2 {[%emt 0:00:26]} d3 {[%emt 0:02:16]} 24. Nf4 {[%emt 0:00:35]} a5 {[%emt 0:05:03]} 25. Bxc6 {[%emt 0:01:31]} bxc6 {[%emt 0:00:18]} 26. Nxd3 {[%emt 0:03:48]} Bxd3 {[%emt 0:01:24]} 27. Qxd3 {[%emt 0:03:12]} axb4 {[%emt 0:00:14]} 28. Qc4+ {[%emt 0:00:26]} Kh8 {[%emt 0:00:08]} 29. Qxb4 {[%emt 0:00:24]} Re2 {[%emt 0:03:46]} 30. h3 {[%emt 0:09:38]} h5 {[%emt 0:03:08]} 31. a4 {[%emt 0:00:29]} Rb8 {[%emt 0:00:58]} 32. Qd4 {[%emt 0:00:11]} Qe8 {[%emt 0:00:55]} 33. Kh2 {[%emt 0:02:29]} Kh7 {[%emt 0:00:31]} 34. Rd1 {[%emt 0:02:39]} Ra8 {[%emt 0:00:35]} 35. Qf4 {[%emt 0:00:48]} Qe5 {[%emt 0:00:33]} 36. Qxe5 {[%emt 0:00:19]} fxe5 {[%emt 0:00:27]} 37. Rxc6 {[%emt 0:01:08]} Rxa4 {[%emt 0:00:25]} 38. Rd7 {[%emt 0:00:17]} Rxf2 {[%emt 0:00:37]} 39. Rcc7 {[%emt 0:00:24]} Raa2 {[%emt 0:00:29]} 40. Rxg7+ {[%emt 0:00:19]} Kh6 {[%emt 0:00:26]} 41. Rg8 {[%emt 0:43:06]} Rf5 {[%emt 0:16:50]} 42. Rc6+ {[%emt 0:00:00]} Kh7 {[%emt 0:01:58]} 43. Re8 {[%emt 0:00:00]} Rg5 {[%emt 0:04:51]} 44. Re7+ {[%emt 0:00:00]} Rg7 {[%emt 0:00:27]} 45. Rxg7+ {[%emt 0:00:00]} Kxg7 {[%emt 0:00:01]} 46. Re6 {[%emt 0:00:00]} Re2 {[%emt 0:00:15]} 47. Kg3 {[%emt 0:00:00]} e4 {[%emt 0:02:22]} 48. c6 {[%emt 0:00:00]} Rc2 {[%emt 0:01:31]} 49. Kf4 {[%emt 0:00:00]} Rxg2 {[%emt 0:04:41]} 50. Kxe4 {[%emt 0:00:00]} Rd2 {[%emt 0:02:18]} 51. Ke5 {[%emt 0:00:00]} h4 {[%emt 0:02:58]} 52. c7 {[%emt 0:00:00]} Rc2 {[%emt 0:02:23]} 53. Kd6 {[%emt 0:00:00]} Kf7 {[%emt 0:00:35]} 54. Re5 {[%emt 0:00:00]} Kf6 {[%emt 0:02:55]} 55. Rc5 {[%emt 0:00:00]} Rd2+ {[%emt 0:00:24]} 56. Kc6 {[%emt 0:00:00]} 1-0

[Event "Fagernes GM Swiss 2020"]
[Site "Fagernes"]
[Date "2020.10.10"]
[Round "8.17"]
[White "Eliseev, Sergey"]
[Black "Shehzad, Shazil"]
[Result "1-0"]
[ECO "A09"]
[WhiteElo "2025"]
[BlackElo "2188"]
[Annotator "ChessBase"]
[PlyCount "119"]
[EventDate "2020.10.04"]
[EventType "swiss"]
[EventCountry "NOR"]
[SourceTitle "playchess.com"]
[Source "ChessBase"]
[SourceQuality "1"]
[TimeControl "40/6000+30:2400+30"]

1. Nf3 {[%emt 0:00:12]} d5 {[%emt 0:00:00]} 2. c4 {[%emt 0:00:07]} d4 {[%emt 0:00:00]} 3. g3 {[%emt 0:00:28]} g6 {[%emt 0:03:09]} 4. d3 {[%emt 0:00:18]} Bg7 {[%emt 0:00:13]} 5. Bg2 {[%emt 0:00:56]} e5 {[%emt 0:01:04]} 6. O-O {[%emt 0:01:35]} Ne7 {[%emt 0:00:04]} 7. Na3 {[%emt 0:07:33]} O-O {[%emt 0:00:20]} 8. e3 {[%emt 0:03:37]} Nbc6 {[%emt 0:02:32]} 9. exd4 {[%emt 0:00:53]} Nxd4 {[%emt 0:01:29]} 10. Nxd4 {[%emt 0:01:33]} Qxd4 {[%emt 0:00:33]} 11. Be3 {[%emt 0:12:45]} Qd7 {[%emt 0:00:57]} 12. Nb5 {[%emt 0:02:24]} Nf5 {[%emt 0:03:03]} 13. Bc5 {[%emt 0:05:10]} Rd8 {[%emt 0:02:39]} 14. Nxa7 {[%emt 0:02:22]} c6 {[%emt 0:09:20]} 15. Bb6 {[%emt 0:02:23]} Re8 {[%emt 0:01:50]} 16. Bh3 {[%emt 0:16:14]} Qe7 {[%emt 0:03:53]} 17. Nxc8 {[%emt 0:02:00]} Rexc8 {[%emt 0:02:03]} 18. Qf3 {[%emt 0:09:49]} c5 {[%emt 0:04:03]} 19. Bxf5 {[%emt 0:00:05]} gxf5 {[%emt 0:00:12]} 20. a4 {[%emt 0:00:29]} Rc6 {[%emt 0:00:53]} 21. a5 {[%emt 0:00:13]} Qf6 {[%emt 0:06:43]} 22. Ra3 {[%emt 0:06:06]} Re8 {[%emt 0:01:58]} 23. Re1 {[%emt 0:00:21]} Qg5 {[%emt 0:04:18]} 24. h4 {[%emt 0:02:09]} Qd2 {[%emt 0:02:44]} 25. Re2 {[%emt 0:07:06]} Qd1+ {[%emt 0:02:49]} 26. Kg2 {[%emt 0:00:05]} f4 {[%emt 0:02:48]} 27. Re4 {[%emt 0:03:00]} Qc1 {[%emt 0:01:54]} 28. Re2 {[%emt 0:06:50]} fxg3 {[%emt 0:01:07]} 29. Qe3 {[%emt 0:02:29]} Qb1 {[%emt 0:01:18]} 30. fxg3 {[%emt 0:00:40]} e4 {[%emt 0:03:34]} 31. Qg1 {[%emt 0:00:12]} Qxg1+ 32. Kxg1 {[%emt 0:00:02]} e3 {[%emt 0:06:18]} 33. Ra1 {[%emt 0:01:01]} Rd6 {[%emt 0:07:10]} 34. Rd1 {[%emt 0:01:49]} Bd4 {[%emt 0:02:11]} 35. Kg2 {[%emt 0:00:41]} Ra8 {[%emt 0:17:17]} 36. Rb1 {[%emt 0:07:01]} Re8 {[%emt 0:07:46]} 37. Rf1 {[%emt 0:03:28]} Ree6 {[%emt 0:03:02]} 38. Rf5 {[%emt 0:02:44]} Bxb2 {[%emt 0:00:34]} 39. Bxc5 {[%emt 0:00:21]} Rxd3 {[%emt 0:00:30]} 40. Rxb2 {[%emt 0:01:11]} e2 {[%emt 0:00:25]} 41. Rg5+ {[%emt 0:02:32]} Kh8 {[%emt 0:00:17]} 42. Bf2 {[%emt 0:01:36]} Rd1 {[%emt 0:02:01]} 43. Rxb7 {[%emt 0:04:12]} h6 {[%emt 0:01:20]} 44. Rd5 {[%emt 0:00:37]} Rf1 {[%emt 0:01:08]} 45. Bd4+ {[%emt 0:24:58]} Kh7 {[%emt 0:01:24]} 46. Bc3 {[%emt 0:02:05]} Re3 {[%emt 0:12:58]} 47. Bb4 {[%emt 0:00:05]} Rb1 {[%emt 0:05:15]} 48. Rxf7+ {[%emt 0:01:22]} Kg8 {[%emt 0:01:11]} 49. Rf8+ {[%emt 0:06:02]} Kg7 {[%emt 0:01:09]} 50. Rd7+ {[%emt 0:00:30]} Kg6 {[%emt 0:00:14]} 51. Rg8+ {[%emt 0:00:41]} Kf6 {[%emt 0:00:49]} 52. Rgg7 {[%emt 0:00:49]} Rb2 {[%emt 0:02:53]} 53. Rgf7+ {[%emt 0:01:32]} Kg6 {[%emt 0:00:14]} 54. Rg7+ {[%emt 0:00:32]} Kf6 {[%emt 0:00:47]} 55. Be1 {[%emt 0:00:08]} Rb1 {[%emt 0:00:29]} 56. Rdf7+ {[%emt 0:00:11]} Ke5 {[%emt 0:00:44]} 57. Re7+ {[%emt 0:00:05]} Kd4 {[%emt 0:00:33]} 58. Rxe3 {[%emt 0:00:16]} Kxe3 {[%emt 0:00:04]} 59. Re7+ {[%emt 0:00:12]} Kd3 {[%emt 0:00:07]} 60. Kf2 {[%emt 0:00:08]} 1-0

[Event "Fagernes GM Swiss 2020"]
[Site "Fagernes"]
[Date "2020.10.10"]
[Round "8.18"]
[White "Nielsen, Andre"]
[Black "Holleland, Sigve"]
[Result "0-1"]
[ECO "B68"]
[WhiteElo "2218"]
[BlackElo "2133"]
[Annotator "NA"]
[PlyCount "88"]
[EventDate "2020.10.04"]
[EventType "swiss"]
[EventCountry "NOR"]
[SourceTitle "playchess.com"]
[Source "ChessBase"]
[SourceQuality "1"]
[TimeControl "40/6000+30:2400+30"]

1. e4 {[%emt 0:00:00]} c5 {[%emt 0:01:15]} 2. Nf3 {[%emt 0:00:00]} Nc6 {[%emt 0:00:26]} 3. d4 {[%emt 0:00:21]} cxd4 {[%emt 0:00:05]} 4. Nxd4 {[%emt 0:00:15]} Nf6 {[%emt 0:00:06]} 5. Nc3 {[%emt 0:00:10]} d6 {[%emt 0:00:12]} 6. Bg5 {[%emt 0:00:35]} e6 {[%emt 0:00:14]} 7. Qd2 {[%emt 0:00:37]} Bd7 {[%emt 0:00:28] [#]} 8. O-O-O {[%emt 0:01:08]} ({White should play} 8. Ndb5 $1 $16) 8... a6 {[%emt 0:00:11]} 9. f4 {[%emt 0:04:25]} Be7 {[%emt 0:01:11] is now debated instead of 9...b5.} 10. Be2 {[%emt 0:16:35]} b5 {[%emt 0:05:57]} 11. Bxf6 {[%emt 0:05:09] B68: Sicilian: Richter-Rauzer: 7...a6 8 0-0-0 Bd7 9 f4 Be7 .} Bxf6 {[%emt 0:07:27]} 12. Nxc6 {[%emt 0:10:44]} Bxc6 {[%emt 0:00:05]} 13. Qxd6 {[%emt 0:00:39]} Qb6 {[%emt 0:13:22] [#]} 14. Nd5 $146 {[%emt 0:11:31]} ({Predecessor:} 14. Bxb5 axb5 15. Nd5 exd5 16. exd5 Be7 17. Rhe1 O-O 18. Rxe7 Rxa2 19. dxc6 Ra1+ 20. Kd2 Rd8 21. Rd7 Rxd7 22. Qxd7 Qf2+ 23. Kc3 Qc5+ 24. Kd2 Qf2+ 25. Kc3 {½-½ (25) Schmider,N (2280)-Baskin,R (2381) Neustadt an der Weinstrasse 2020}) 14... exd5 {[%emt 0:00:27]} 15. exd5 {[%emt 0:00:42]} Qe3+ {[%emt 0:00:51]} 16. Kb1 {[%emt 0:00:40]} Bd7 {[%emt 0:01:09]} 17. Rhe1 {[%emt 0:09:53]} Qa7 $1 {[%emt 0:04:37]} 18. Bxb5+ {[%emt 0:03:19]} Kd8 {[%emt 0:00:10]} 19. Bc6 {[%emt 0:00:30] [#]} Rb8 $15 {[%emt 0:00:14]} 20. c3 {[%emt 0:12:19]} Qc7 {[%emt 0:02:41]} 21. Qa3 {[%emt 0:00:55]} Qb6 {[%emt 0:03:21]} 22. Rd2 {[%emt 0:05:10]} Kc7 {[%emt 0:07:39]} 23. Bxd7 {[%emt 0:04:58]} Kxd7 {[%emt 0:00:06]} 24. c4 {[%emt 0:14:05]} Qb4 {[%emt 0:17:29]} 25. Qxb4 {[%emt 0:05:04]} Rxb4 {[%emt 0:00:39]} 26. Rc2 {[%emt 0:00:47]} Rhb8 {[%emt 0:03:24]} 27. Ree2 {[%emt 0:00:11]} Kd6 {[%emt 0:00:41]} 28. g4 {[%emt 0:01:10]} Kc5 {[%emt 0:01:28]} 29. g5 {[%emt 0:00:36]} Bd4 {[%emt 0:00:59]} 30. b3 {[%emt 0:00:57]} a5 {[%emt 0:00:37]} 31. Re7 {[%emt 0:01:10]} a4 {[%emt 0:05:00]} 32. Rc7+ {[%emt 0:00:14]} Kd6 {[%emt 0:00:07]} 33. Rxf7 {[%emt 0:00:06]} axb3 {[%emt 0:00:11]} 34. axb3 {[%emt 0:00:07]} Rxb3+ {[%emt 0:00:14]} 35. Kc1 {[%emt 0:00:15]} Rd3 {[%emt 0:01:35]} 36. Re2 {[%emt 0:02:10]} Rc3+ {[%emt 0:01:12]} 37. Rc2 {[%emt 0:00:29]} Be3+ {[%emt 0:00:22]} 38. Kd1 {[%emt 0:00:06]} Rb1+ {[%emt 0:00:08]} 39. Ke2 {[%emt 0:00:11]} Rxc2+ {[%emt 0:00:13]} 40. Kxe3 {[%emt 0:00:08]} Rxc4 {[%emt 0:01:19]} 41. Rxg7 {[%emt 0:03:43]} Rb3+ {[%emt 0:00:23]} 42. Kd2 {[%emt 0:00:13]} Rxf4 {[%emt 0:01:01]} 43. Rxh7 {[%emt 0:00:12]} Rf2+ {[%emt 0:00:12]} 44. Kc1 {[%emt 0:00:30]} Rc3+ {[%emt 0:01:10]} 0-1